bitfinex/quotes_SOLUSD_20260214
["timestamp","ask_amount","ask_price","bid_price","bid_amount"]
[1771067584618,12.04816476,86.335,86.311,0.06924642]
[1771067584920,11.58278797,86.335,86.311,0.06924642]
[1771067585122,11.58278797,86.335,86.32,8.60768619]
[1771067585835,11.58144652,86.345,86.32,8.60768619]
[1771067586031,0.46537679,86.344,86.32,8.60768619]
[1771067586815,0.46537679,86.344,86.311,0.06924642]
[1771067587338,0.46537679,86.344,86.32,8.60768619]
[1771067588032,11.58171478,86.343,86.32,8.60768619]
[1771067588347,0.46537679,86.342,86.32,8.60768619]
[1771067588517,11.58171478,86.343,86.33,8.60768619]
[1771067588711,28.63969126,86.346,86.331,0.06924642]
[1771067588911,28.57044484,86.346,86.34,8.60768619]
[1771067589320,11.57930084,86.361,86.34,8.60768619]
[1771067589516,11.57861449,86.367,86.34,8.60768619]
[1771067589717,8.60768619,86.45,86.34,8.60768619]
[1771067589718,0.5,86.377,86.34,8.60768619]
[1771067589922,0.5,86.375,86.326,11.58392493]
[1771067590126,0.5,86.375,86.267,46.36759521]
[1771067590127,0.5,86.369,86.32,8.60768619]
[1771067590335,0.5,86.359,86.32,8.60768619]
[1771067590633,0.5,86.37,86.33,8.60768619]
[1771067590832,40.52051494,86.376,86.34,8.60768619]
[1771067591334,40.52051494,86.376,86.295,4.61729252]
[1771067591335,8.60768619,86.37,86.33,8.60768619]
[1771067591549,40.52051494,86.376,86.33,8.60768619]
[1771067591740,8.60768619,86.37,86.33,8.60768619]
[1771067592046,8.60768619,86.36,86.32,8.60768619]
[1771067592249,8.60768619,86.36,86.293,40.55948918]
[1771067592433,8.60768619,86.36,86.32,8.60768619]
[1771067592946,58.08,86.364,86.33,8.60768619]
[1771067593126,58.08,86.364,86.32,8.60768619]
[1771067593637,8.60768619,86.36,86.32,8.60768619]
[1771067593845,8.60768619,86.37,86.33,8.60768619]
[1771067594045,40.52379903,86.369,86.33,8.60768619]
[1771067594338,40.52379903,86.369,86.32,8.60768619]
[1771067594543,40.52379903,86.369,86.34,8.60768619]
[1771067594744,0.5,86.378,86.35,8.60768619]
[1771067594923,0.5,86.378,86.36,8.60768619]
[1771067595540,11.57655098,86.382,86.36,8.60768619]
[1771067596039,28.9412146,86.382,86.35,8.60768619]
[1771067596343,0.5,86.381,86.324,28.96065983]
[1771067596640,0.5,86.389,86.36,8.60768619]
[1771067596942,0.5,86.403,86.333,44.94]
[1771067597148,0.5,86.399,86.36,8.60768619]
[1771067597820,40.50738391,86.404,86.35,8.60768619]
[1771067597821,0.5,86.389,86.35,8.60768619]
[1771067598024,0.5,86.387,86.35,8.60768619]
[1771067598627,0.5,86.387,86.36,8.60768619]
[1771067599340,11.5756818,86.388,86.36,8.60768619]
[1771067600129,11.5759498,86.386,86.36,8.60768619]
[1771067601742,11.57166331,86.418,86.38,8.60768619]
[1771067601935,11.57166331,86.418,86.336,40.53928835]
[1771067601936,0.5,86.417,86.39,8.60768619]
[1771067602141,0.5,86.415,86.39,8.60768619]
[1771067602336,11.57193112,86.416,86.39,8.60768619]
[1771067602653,11.56724618,86.451,86.41,8.60768619]
[1771067602849,40.48536164,86.451,86.41,3.43005108]
[1771067603045,40.48536164,86.451,86.374,40.52140112]
[1771067603046,0.5,86.429,86.39,3.43005108]
[1771067603953,0.5,86.419,86.37,3.43005108]
[1771067604156,3.43005108,86.39,86.324,4.61729252]
[1771067604363,0.5,86.409,86.37,3.43005108]
[1771067604540,0.5,86.389,86.324,4.61729252]
[1771067604856,0.5,86.409,86.37,8.58314447]
[1771067605953,0.5,86.409,86.38,8.58314447]
[1771067606153,11.57300249,86.408,86.37,8.58314447]
[1771067606350,0.5,86.407,86.36,8.58314447]
[1771067607352,0.5,86.389,86.35,8.58314447]
[1771067607651,0.5,86.389,86.34,8.58314447]
[1771067607848,0.5,86.379,86.34,8.58314447]
[1771067608349,0.5,86.377,86.341,11.58198306]
[1771067609130,0.5,86.399,86.36,8.58314447]
[1771067609336,12.07420803,86.399,86.36,8.58314447]
[1771067610347,12.07420803,86.399,86.361,11.57930084]
[1771067610836,12.07355641,86.404,86.37,8.58314447]
[1771067611046,12.07355641,86.404,86.361,40.52755294]
[1771067611247,0.5,86.403,86.361,11.57930084]
[1771067611445,0.5,86.389,86.34,8.58314447]
[1771067612158,0.5,86.389,86.35,8.58314447]
[1771067612355,0.5,86.387,86.351,11.58064179]
[1771067614438,0.5,86.385,86.35,8.58314447]
[1771067615354,0.5,86.385,86.323,40.54539346]
[1771067615556,0.5,86.379,86.33,8.58314447]
[1771067616454,0.5,86.377,86.34,8.58314447]
[1771067619261,0.5,86.375,86.341,11.58198306]
[1771067620763,0.5,86.399,86.36,8.58314447]
[1771067620965,0.5,86.409,86.37,8.58314447]
[1771067621176,0.5,86.429,86.4,8.58314447]
[1771067621346,11.57032443,86.428,86.401,11.57394011]
[1771067621552,0.5,86.427,86.39,8.58314447]
[1771067622062,0.5,86.427,86.365,40.58]
[1771067622063,0.5,86.427,86.377,11.57715595]
[1771067622265,0.5,86.419,86.38,8.58314447]
[1771067622569,0.5,86.419,86.39,8.58314447]
[1771067623366,12.07161256,86.419,86.39,20.15850439]
[1771067623875,0.5,86.427,86.4,8.58314447]
[1771067624249,0.5,86.463,86.42,8.58314447]
[1771067625149,11.56550703,86.464,86.39,40.51389447]
[1771067625150,0.5,86.461,86.39,98.39096357]
[1771067625351,0.5,86.457,86.42,8.58314447]
[1771067625771,0.5,86.457,86.42,20.15449397]
[1771067626961,0.5,86.457,86.42,8.58314447]
[1771067627360,11.56657721,86.456,86.42,8.58314447]
[1771067627569,0.5,86.455,86.401,28.93455253]
[1771067627749,0.5,86.455,86.42,8.58314447]
[1771067627949,0.5,86.455,86.41,8.58314447]
[1771067628156,0.5,86.455,86.42,8.58314447]
[1771067629652,11.56684479,86.454,86.43,8.58314447]
[1771067629873,0.5,86.457,86.43,8.58314447]
[1771067630075,46.22300434,86.537,86.421,11.57126161]
[1771067630076,0.5,86.577,86.45,8.58314447]
[1771067630285,29.37620446,86.577,86.453,4.61729252]
[1771067630575,0.5,86.576,86.485,5.36086188]
[1771067630764,0.5,86.559,86.476,16.18]
[1771067630968,8.58314447,86.55,86.51,8.58314447]
[1771067631275,0.5,86.573,86.54,8.58314447]
[1771067631472,7.28284448,86.605,86.52,8.58314447]
[1771067631677,0.5,86.667,86.58,8.58314447]
[1771067631859,0.5,86.657,86.59,8.58314447]
[1771067632059,7.27706484,86.702,86.64,17.16628894]
[1771067632263,0.5,86.767,86.66,8.58314447]
[1771067632463,0.5,86.729,86.633,4.61729252]
[1771067632664,0.5,86.729,86.63,16.16]
[1771067632865,0.5,86.699,86.63,16.16]
[1771067633079,0.5,86.679,86.601,17.56]
[1771067633453,293.88714733,86.768,86.65,8.58314447]
[1771067633454,0.5,86.703,86.65,8.58314447]
[1771067633655,11.53096641,86.723,86.66,20.1224811]
[1771067633855,0.5,86.729,86.66,11.53933663]
[1771067634057,20.11321393,86.73,86.68,8.58314447]
[1771067634359,0.5,86.689,86.576,40.42690814]
[1771067634556,0.5,86.639,86.577,83.11824146]
[1771067634866,0.5,86.609,86.577,83.11824146]
[1771067635171,0.5,86.609,86.549,62.8]
[1771067635172,0.5,86.589,86.476,46.25535308]
[1771067635363,0.5,86.559,86.51,8.54378872]
[1771067635552,0.5,86.559,86.511,66.49459316]
[1771067635754,8.54378872,86.55,86.511,66.49459316]
[1771067635960,0.5,86.539,86.511,66.49459316]
[1771067636159,8.54378872,86.53,86.511,66.49459316]
[1771067636355,46.19578729,86.588,86.511,66.49459316]
[1771067636356,0.5,86.583,86.52,8.54378872]
[1771067636567,8.54378872,86.57,86.52,8.54378872]
[1771067636769,0.5,86.569,86.52,8.54378872]
[1771067637364,0.5,86.549,86.513,51.00026416]
[1771067637563,0.5,86.539,86.513,51.00026416]
[1771067637862,0.5,86.537,86.513,51.00026416]
[1771067638066,0.5,86.561,86.52,8.54378872]
[1771067638258,20.09646894,86.56,86.514,11.55882284]
[1771067638781,11.55268022,86.56,86.514,11.55882284]
[1771067639357,0.5,86.549,86.513,51.00026416]
[1771067639565,0.47837461,86.529,86.471,0.46631449]
[1771067639781,0.47837461,86.509,86.486,30.15450313]
[1771067639997,8.54378872,86.5,86.486,28.65450313]
[1771067640199,11.55629864,86.533,86.487,0.5]
[1771067640359,8.54378872,86.55,86.491,0.5]
[1771067640685,8.54378872,86.53,86.488,0.5]
[1771067640884,132.81132704,86.589,86.511,0.5]
[1771067640885,8.54378872,86.56,86.511,0.5]
[1771067641387,8.54378872,86.57,86.521,0.5]
[1771067641761,8.54378872,86.57,86.523,0.5]
[1771067642167,8.54378872,86.56,86.523,0.5]
[1771067643083,8.54378872,86.55,86.505,0.5]
[1771067643903,8.54378872,86.56,86.513,0.5]
[1771067644188,4.61729252,86.577,86.513,0.5]
[1771067644381,40.42504042,86.58,86.513,0.5]
[1771067644382,8.54378872,86.57,86.513,0.5]
[1771067644584,8.54378872,86.56,86.513,0.5]
[1771067644886,8.54378872,86.55,86.513,0.5]
[1771067645391,8.54378872,86.54,86.501,0.5]
[1771067645568,8.54378872,86.56,86.501,0.5]
[1771067645768,11.55281368,86.559,86.503,0.5]
[1771067646167,58.46,86.586,86.502,11.56042634]
[1771067646168,11.55201616,86.565,86.511,0.5]
[1771067646474,11.55201616,86.565,86.521,0.5]
[1771067646681,11.55097653,86.573,86.521,0.5]
[1771067646867,8.54378872,86.57,86.521,0.5]
[1771067647697,11.55097653,86.573,86.521,0.5]
[1771067647888,11.55014495,86.579,86.523,0.5]
[1771067648095,8.54378872,86.57,86.523,0.5]
[1771067648792,40.42550733,86.579,86.523,0.5]
[1771067649092,11.55014495,86.579,86.54,8.54378872]
[1771067649294,11.55014495,86.579,86.541,0.5]
[1771067649491,46.15540429,86.664,86.561,0.5]
[1771067649691,11.66383826,86.602,86.571,0.5]
[1771067649875,0.11668,86.602,86.571,0.5]
[1771067650277,0.11668,86.602,86.581,0.5]
[1771067650666,11.54347851,86.629,86.591,0.45291886]
[1771067650974,8.54378872,86.64,86.601,0.45291886]
[1771067651175,8.54378872,86.65,86.601,0.45291886]
[1771067651787,40.38772213,86.66,86.568,55.52]
[1771067651788,11.53948233,86.659,86.611,0.45291886]
[1771067652296,11.53838616,86.668,86.631,0.45291886]
[1771067653392,20.07781409,86.7,86.651,0.45291886]
[1771067653573,8.54378872,86.69,86.651,0.45291886]
[1771067653878,11.53548893,86.689,86.651,0.45291886]
[1771067654075,11.53548893,86.689,86.633,0.45291886]
[1771067654076,8.54378872,86.68,86.633,0.45291886]
[1771067654289,8.54378872,86.65,86.621,0.45291886]
[1771067654495,8.54378872,86.65,86.6,8.54378872]
[1771067654801,8.54378872,86.64,86.601,0.45291886]
[1771067655169,8.54378872,86.63,86.601,0.45291886]
[1771067655368,4.61729252,86.675,86.601,0.45291886]
[1771067655369,8.54378872,86.64,86.601,0.45291886]
[1771067655777,8.54378872,86.63,86.601,0.45291886]
[1771067655994,8.54378872,86.64,86.601,0.45291886]
[1771067656193,8.54378872,86.65,86.603,0.45291886]
[1771067656575,40.38725608,86.661,86.603,0.45291886]
[1771067656576,8.54378872,86.64,86.603,0.45291886]
[1771067656775,8.54378872,86.63,86.603,0.45291886]
[1771067657295,8.54378872,86.63,86.564,74.76]
[1771067657296,8.54378872,86.67,86.611,0.45291886]
[1771067657491,8.54378872,86.69,86.641,0.45291886]
[1771067657689,11.53308493,86.708,86.661,0.45291886]
[1771067657886,11.53291054,86.709,86.661,0.45291886]
[1771067658087,8.54378872,86.73,86.681,0.45291886]
[1771067658290,11.53178216,86.717,86.681,0.45291886]
[1771067658479,11.53178216,86.717,86.654,11.54014678]
[1771067658480,8.54378872,86.7,86.654,11.54014678]
[1771067658877,0.48718976,86.699,86.647,11.5409916]
[1771067659076,0.48718976,86.689,86.639,11.54213272]
[1771067659286,8.54378872,86.68,86.639,11.54213272]
[1771067659877,8.54378872,86.67,86.622,74.72]
[1771067660193,0.48718976,86.679,86.63,8.54378872]
[1771067660396,8.54378872,86.66,86.622,74.72]
[1771067660595,0.48718976,86.732,86.651,0.45291886]
[1771067660778,40.35372925,86.733,86.651,0.45291886]
[1771067660779,8.54378872,86.69,86.651,0.45291886]
[1771067661287,0.48718976,86.689,86.651,0.45291886]
[1771067661485,8.54378872,86.68,86.64,0.45291886]
[1771067661688,0.48718976,86.689,86.64,8.99670758]
[1771067661893,9.03097848,86.68,86.641,0.45291886]
[1771067662099,11.53815089,86.669,86.641,0.45291886]
[1771067662288,11.53815089,86.669,86.634,0.45291886]
[1771067662494,8.54378872,86.66,86.624,11.99695847]
[1771067662691,8.54378872,86.66,86.624,0.45291886]
[1771067663081,40.38352812,86.669,86.614,0.45291886]
[1771067663082,8.54378872,86.65,86.614,0.45291886]
[1771067663486,8.54378872,86.66,86.614,0.45291886]
[1771067663798,8.54378872,86.65,86.614,0.45291886]
[1771067663980,8.54378872,86.63,86.602,0.45291886]
[1771067664182,0.48718976,86.644,86.604,0.45291886]
[1771067664378,8.54378872,86.64,86.604,0.45291886]
[1771067664598,11.540015,86.655,86.604,0.45291886]
[1771067664985,8.54378872,86.65,86.604,0.45291886]
[1771067666306,8.54378872,86.65,86.576,57.7522096]
[1771067666307,11.53934918,86.66,86.611,0.45291886]
[1771067666492,8.54378872,86.65,86.611,0.45291886]
[1771067667002,0.48718976,86.649,86.611,0.45291886]
[1771067667208,8.54378872,86.65,86.611,0.45291886]
[1771067667402,12.02653894,86.66,86.611,0.45291886]
[1771067667403,20.0831379,86.66,86.611,0.45291886]
[1771067667897,0.48718976,86.659,86.611,0.45291886]
[1771067668301,9.03097848,86.65,86.611,0.45291886]
[1771067668502,9.03097848,86.65,86.613,0.45291886]
[1771067670405,11.54081408,86.649,86.615,0.45291886]
[1771067670597,12.02800384,86.649,86.615,0.45291886]
[1771067671010,11.54081408,86.649,86.615,0.45291886]
[1771067671207,11.53828402,86.668,86.615,0.45291886]
[1771067671388,0.47788005,86.684,86.631,0.48167617]
[1771067671590,0.47788005,86.689,86.641,0.48167617]
[1771067671795,8.54378872,86.67,86.641,0.48167617]
[1771067671991,0.47788005,86.689,86.641,0.48167617]
[1771067672192,40.374677,86.688,86.641,0.48167617]
[1771067672403,8.54378872,86.68,86.642,11.54174649]
[1771067672605,40.374677,86.688,86.643,0.48167617]
[1771067672809,11.535622,86.688,86.651,0.48167617]
[1771067673213,0.47788005,86.699,86.661,0.48167617]
[1771067673515,0.47788005,86.699,86.642,40.39611273]
[1771067673516,11.53337346,86.705,86.671,0.48167617]
[1771067674101,11.53337346,86.705,86.651,0.48167617]
[1771067674297,0.47788005,86.704,86.661,0.48167617]
[1771067674620,0.47788005,86.704,86.662,0.48167617]
[1771067674916,8.54378872,86.7,86.662,0.48167617]
[1771067675214,57.9,86.723,86.662,0.48167617]
[1771067675215,7.16959618,86.742,86.681,0.48167617]
[1771067675420,11.52883939,86.739,86.701,0.48167617]
[1771067675905,40.35093786,86.739,86.701,0.48167617]
[1771067676295,11.53016868,86.729,86.69,0.48167617]
[1771067676492,0.47788005,86.719,86.67,8.54378872]
[1771067676696,0.47788005,86.728,86.681,0.48167617]
[1771067677217,0.47788005,86.719,86.681,0.48167617]
[1771067677417,8.54378872,86.71,86.672,0.48167617]
[1771067677618,0.47788005,86.719,86.672,0.48167617]
[1771067677809,8.54378872,86.71,86.672,0.48167617]
[1771067678036,0.47788005,86.709,86.665,0.48167617]
[1771067678213,0.47788005,86.719,86.665,0.48167617]
[1771067678396,11.53282819,86.709,86.667,0.48167617]
[1771067678601,11.53212369,86.715,86.681,0.48167617]
[1771067679501,8.54378872,86.71,86.681,0.48167617]
[1771067679707,8.54378872,86.71,86.667,0.48167617]
[1771067679911,0.47788005,86.714,86.667,0.48167617]
[1771067680227,8.54378872,86.7,86.667,0.48167617]
[1771067680397,11.5329612,86.708,86.669,0.45121772]
[1771067681027,8.54378872,86.7,86.669,0.45121772]
[1771067681604,0.45756405,86.707,86.669,0.45121772]
[1771067682727,8.25486879,86.7,86.669,0.45121772]
[1771067683044,11.53322722,86.706,86.654,28.8501573]
[1771067683045,11.53322722,86.706,86.671,0.45121772]
[1771067683914,8.54378872,86.7,86.671,0.45121772]
[1771067684114,8.54378872,86.69,86.661,0.45121772]
[1771067684329,8.54378872,86.68,86.643,0.45121772]
[1771067684824,280.33492925,86.723,86.643,0.45121772]
[1771067684825,8.54378872,86.67,86.643,0.45121772]
[1771067685124,8.54378872,86.69,86.644,11.54148007]
[1771067685329,8.54378872,86.68,86.645,0.45121772]
[1771067686928,11.53681976,86.679,86.645,0.45121772]
[1771067687328,9.00135277,86.67,86.633,0.45121772]
[1771067687533,0.45756405,86.659,86.622,0.45121772]
[1771067688032,8.54378872,86.65,86.622,0.45121772]
[1771067688417,11.99438381,86.679,86.623,0.45121772]
[1771067688618,8.54378872,86.67,86.623,0.45121772]
[1771067688941,8.54378872,86.65,86.612,0.45121772]
[1771067689144,8.54378872,86.65,86.613,0.45121772]
[1771067689332,0.45756405,86.657,86.613,0.45121772]
[1771067689534,8.54378872,86.65,86.613,0.45121772]
[1771067689742,9.00135277,86.65,86.613,0.45121772]
[1771067690120,0.45756405,86.649,86.613,0.45121772]
[1771067690622,11.53948233,86.659,86.613,0.45121772]
[1771067690826,8.54378872,86.7,86.651,0.45121772]
[1771067691022,11.53415841,86.699,86.652,0.45121772]
[1771067692535,11.53415841,86.699,86.651,40.39191699]
[1771067692536,0.45756405,86.749,86.691,0.45121772]
[1771067692839,0.45756405,86.749,86.66,8.54378872]
[1771067692840,11.52883939,86.739,86.701,0.45121772]
[1771067693022,0.45756405,86.739,86.701,0.45121772]
[1771067693848,0.45756405,86.739,86.696,11.53446996]
[1771067694337,9.00135277,86.73,86.692,0.45121772]
[1771067694536,0.55756405,86.74,86.694,0.45121772]
[1771067694736,0.55756405,86.74,86.701,0.45121772]
[1771067695123,11.98640344,86.739,86.701,11.98507466]
[1771067695530,0.45756405,86.729,86.691,0.45121772]
[1771067695831,0.45756405,86.729,86.692,0.45121772]
[1771067696030,0.45756405,86.729,86.687,11.53573686]
[1771067696224,0.45756405,86.729,86.69,8.54378872]
[1771067696433,0.45756405,86.729,86.688,0.45121772]
[1771067697344,0.45756405,86.727,86.689,11.48670665]
[1771067697725,0.45756405,86.727,86.682,11.53634977]
[1771067698821,0.45756405,86.709,86.66,8.52049898]
[1771067699226,0.45756405,86.707,86.661,11.53921602]
[1771067699442,0.45756405,86.699,86.657,0.45121772]
[1771067699942,0.45756405,86.679,86.646,11.54121367]
[1771067700344,0.45756405,86.679,86.645,0.45121772]
[1771067700566,0.45756405,86.659,86.622,0.45121772]
[1771067700847,0.45756405,86.659,86.611,0.45121772]
[1771067701235,0.46085332,86.648,86.611,0.45121772]
[1771067701648,0.46085332,86.648,86.612,11.54574423]
[1771067701843,0.46085332,86.655,86.613,0.48599255]
[1771067702039,8.52049898,86.65,86.613,0.48599255]
[1771067702248,0.46085332,86.649,86.613,0.48599255]
[1771067702754,0.46085332,86.63,86.591,0.48599255]
[1771067703141,0.46085332,86.629,86.591,0.48599255]
[1771067703337,12.00383049,86.633,86.581,0.48599255]
[1771067703541,12.00383049,86.633,86.591,0.48599255]
[1771067703872,0.46085332,86.649,86.602,0.48599255]
[1771067704160,0.46085332,86.619,86.58,11.55001155]
[1771067704365,8.52049898,86.61,86.58,11.55001155]
[1771067704739,0.46085332,86.619,86.58,11.55001155]
[1771067705165,8.52049898,86.61,86.58,11.55001155]
[1771067705762,11.54614416,86.609,86.569,0.48599255]
[1771067705967,5.36086188,86.657,86.558,28.88229649]
[1771067705968,0.46085332,86.619,86.581,0.48599255]
[1771067706354,8.52049898,86.61,86.581,0.48599255]
[1771067706569,0.46085332,86.619,86.581,0.48599255]
[1771067706773,0.46085332,86.609,86.57,8.52049898]
[1771067706946,8.52049898,86.6,86.569,0.48599255]
[1771067707264,11.54627748,86.608,86.571,0.48599255]
[1771067708660,0.46085332,86.607,86.571,0.48599255]
[1771067708844,0.46085332,86.599,86.564,11.55205735]
[1771067709263,0.46085332,86.599,86.565,0.48599255]
[1771067709764,8.9813523,86.58,86.543,0.48599255]
[1771067709965,0.46085332,86.589,86.551,0.48599255]
[1771067710665,8.52049898,86.58,86.551,0.48599255]
[1771067710973,8.9813523,86.58,86.551,0.48599255]
[1771067711769,8.52049898,86.58,86.552,11.55374803]
[1771067711963,12.01006528,86.586,86.552,11.55374803]
[1771067712269,11.54921196,86.586,86.552,11.55374803]
[1771067712459,8.52049898,86.58,86.552,11.55374803]
[1771067713075,0.46085332,86.585,86.552,0.48599255]
[1771067713277,8.52049898,86.59,86.552,0.48599255]
[1771067713463,0.46085332,86.579,86.542,0.48599255]
[1771067713772,8.9813523,86.59,86.551,0.48599255]
[1771067714154,0.46085332,86.589,86.551,0.48599255]
[1771067715273,8.52049898,86.58,86.551,0.48599255]
[1771067715458,8.9813523,86.57,86.542,0.48599255]
[1771067715770,8.9813523,86.57,86.532,12.04236159]
[1771067715771,0.46085332,86.569,86.532,12.04236159]
[1771067716461,0.46085332,86.569,86.533,0.48599255]
[1771067716661,0.46085332,86.589,86.551,0.48599255]
[1771067716859,0.46085332,86.579,86.541,0.48599255]
[1771067717255,0.46085332,86.559,86.482,0.48599255]
[1771067717460,0.46085332,86.575,86.531,0.48599255]
[1771067717980,0.46085332,86.569,86.531,0.48599255]
[1771067718355,0.46085332,86.559,86.531,0.48599255]
[1771067719060,8.52049898,86.56,86.531,0.48599255]
[1771067719359,11.55071594,86.575,86.533,0.48599255]
[1771067720069,12.01156926,86.575,86.533,0.48599255]
[1771067720671,0.46085332,86.574,86.533,0.48599255]
[1771067720873,0.46085332,86.569,86.533,0.48599255]
[1771067721575,0.46085332,86.569,86.535,0.48599255]
[1771067721781,0.46085332,86.569,86.534,11.55615133]
[1771067721782,0.46085332,86.589,86.551,0.48599255]
[1771067721958,0.46085332,86.579,86.54,0.48599255]
[1771067722282,0.46085332,86.559,86.526,11.5571654]
[1771067722471,0.46085332,86.549,86.513,0.48599255]
[1771067722668,0.46085332,86.549,86.512,11.55909006]
[1771067722669,8.52049898,86.57,86.53,8.52049898]
[1771067722980,0.46085332,86.579,86.541,0.48599255]
[1771067723479,12.01112712,86.579,86.543,0.48599255]
[1771067723782,0.46085332,86.587,86.543,0.48599255]
[1771067723964,0.46085332,86.579,86.542,11.55508308]
[1771067724473,0.46085332,86.569,86.536,11.55579611]
[1771067724653,0.46085332,86.559,86.531,11.55654511]
[1771067725361,0.46085332,86.569,86.532,0.48599255]
[1771067725566,11.5516126,86.568,86.54,8.52049898]
[1771067725763,11.5516126,86.568,86.534,0.48599255]
[1771067725977,8.9813523,86.58,86.534,0.48599255]
[1771067726177,563.5588855,86.658,86.533,40.44699709]
[1771067726178,0.46085332,86.591,86.551,0.48599255]
[1771067726567,0.46085332,86.589,86.56,8.52049898]
[1771067726880,57.71870099,86.628,86.533,40.44699709]
[1771067726881,0.46085332,86.61,86.571,0.48599255]
[1771067727070,8.9813523,86.61,86.571,0.48599255]
[1771067727471,8.9813523,86.61,86.57,8.52049898]
[1771067727472,11.54614416,86.609,86.573,0.48599255]
[1771067727769,0.46085332,86.608,86.573,0.48599255]
[1771067728462,0.46085332,86.599,86.552,0.48599255]
[1771067728775,8.9813523,86.6,86.561,0.48599255]
[1771067728963,0.46085332,86.6,86.561,0.48599255]
[1771067730278,0.46085332,86.598,86.551,0.48599255]
[1771067730601,0.46085332,86.589,86.553,11.55348298]
[1771067730766,0.46085332,86.589,86.551,0.48599255]
[1771067731087,12.00833077,86.599,86.561,0.48599255]
[1771067731270,12.00833077,86.599,86.57,8.52049898]
[1771067732473,12.00833077,86.599,86.563,0.47174405]
[1771067733268,0.45827747,86.598,86.562,11.55241329]
[1771067733466,0.45827747,86.598,86.552,11.55374803]
[1771067733779,40.41617108,86.599,86.552,11.55374803]
[1771067733780,0.45827747,86.589,86.552,11.55374803]
[1771067734465,8.52049898,86.58,86.542,0.47174405]
[1771067734666,8.52049898,86.58,86.54,8.52049898]
[1771067734667,0.45827747,86.579,86.541,0.47174405]
[1771067735764,11.54894442,86.588,86.55,8.52049898]
[1771067736089,0.45827747,86.587,86.551,0.47174405]
[1771067736673,11.54921118,86.586,86.553,0.47174405]
[1771067736877,12.00748865,86.586,86.553,0.47174405]
[1771067738098,0.45827747,86.585,86.553,0.47174405]
[1771067738385,8.52049898,86.58,86.542,0.47174405]
[1771067738589,0.45827747,86.579,86.541,11.5552166]
[1771067739504,0.45827747,86.569,86.509,0.47174405]
[1771067739669,0.45827747,86.569,86.531,0.47174405]
[1771067740183,56.9,86.572,86.532,12.04843061]
[1771067740184,0.46256377,86.567,86.532,12.04843061]
[1771067741092,11.5516126,86.568,86.487,57.81177031]
[1771067741093,0.46256377,86.559,86.522,11.55771966]
[1771067741299,0.46256377,86.559,86.523,0.49201218]
[1771067743701,11.55294715,86.558,86.524,11.55748694]
[1771067743876,0.46256377,86.557,86.524,11.55748694]
[1771067744197,0.46256377,86.557,86.525,0.49201218]
[1771067744383,11.55174604,86.567,86.531,0.49201218]
[1771067744895,0.46256377,86.559,86.522,0.49201218]
[1771067745394,0.46256377,86.549,86.513,0.49201218]
[1771067745698,8.52049898,86.56,86.521,0.49201218]
[1771067745871,11.55226551,86.564,86.523,0.49201218]
[1771067746076,11.55226551,86.564,86.522,11.55775409]
[1771067746077,11.55116059,86.572,86.531,0.49201218]
[1771067746496,11.55116059,86.572,86.541,0.49201218]
[1771067746983,56.86,86.582,86.541,0.49201218]
[1771067746984,11.54984341,86.582,86.541,0.49201218]
[1771067747194,11.54913057,86.587,86.551,0.49201218]
[1771067747577,0.46256377,86.59,86.551,0.49201218]
[1771067747791,12.01137481,86.589,86.551,0.49201218]
[1771067748186,0.46256377,86.588,86.553,0.49201218]
[1771067748594,0.46256377,86.597,86.561,0.49201218]
[1771067749894,11.5478775,86.596,86.563,0.49201218]
[1771067750098,56.86,86.611,86.562,11.55241329]
[1771067750099,8.52049898,86.62,86.581,0.49201218]
[1771067750399,0.46256377,86.609,86.571,0.49201218]
[1771067750984,0.46256377,86.609,86.562,40.43344653]
[1771067750985,0.46256377,86.599,86.562,12.04442547]
[1771067751185,0.46256377,86.599,86.548,28.88560129]
[1771067751504,0.46256377,86.589,86.55,8.52049898]
[1771067751704,0.46256377,86.589,86.551,0.49201218]
[1771067751879,0.46256377,86.589,86.561,0.49201218]
[1771067752079,0.46256377,86.589,86.562,11.55241329]
[1771067753502,0.46256377,86.588,86.556,11.55310369]
[1771067754216,0.46256377,86.588,86.517,57.7919131]
[1771067754217,0.46256377,86.579,86.543,0.49201218]
[1771067754900,0.46256377,86.579,86.538,11.55561718]
[1771067755080,0.46256377,86.579,86.539,0.49201218]
[1771067756103,0.46256377,86.577,86.542,12.04709526]
[1771067757591,0.46256377,86.577,86.543,0.49201218]
[1771067758200,0.46256377,86.577,86.544,11.55481604]
[1771067758387,0.46256377,86.575,86.544,11.55481604]
[1771067759291,28.87269451,86.587,86.545,0.49201218]
[1771067759292,0.46256377,86.586,86.545,0.49201218]
[1771067759806,0.46256377,86.579,86.545,0.49201218]
[1771067760313,0.46256377,86.579,86.547,0.49201218]
[1771067761307,12.02366336,86.588,86.551,0.47598437]
[1771067762004,0.47471208,86.579,86.546,40.91690595]